bitfinex/quotes_ETHUSD_20250219
["timestamp","ask_amount","ask_price","bid_price","bid_amount"]
[1739993450455,0.368175,2716.0,2715.4,0.7503]
[1739993450680,0.368175,2716.0,2715.4,4.43292]
[1739993450986,0.368175,2716.0,2715.4,0.7503]
[1739993451296,4.72551,2716.3,2715.6,3.68239]
[1739993451495,3.68163,2716.2,2715.5,3.68248]
[1739993451853,4.72551,2716.3,2715.6,3.68239]
[1739993452495,3.6817,2716.2,2715.5,3.68248]
[1739993452693,3.6817,2716.2,2715.4,0.7503]
[1739993452694,4.522491,2716.1,2715.4,0.7503]
[1739993452858,0.840721,2716.1,2715.6,3.68234]
[1739993453288,4.522581,2716.1,2715.4,0.7503]
[1739993453494,3.68198,2716.0,2715.4,4.43299]
[1739993454396,0.840721,2716.1,2715.4,4.43299]
[1739993454598,0.74396844,2716.3,2715.5,0.811574]
[1739993454902,3.0,2716.4,2716.0,3.68187]
[1739993455101,5.36,2716.5,2716.0,3.68187]
[1739993455309,15.86546867,2716.9,2716.3,4.46837]
[1739993455464,3.68095,2716.7,2716.3,0.7869]
[1739993455864,3.68129,2716.5,2716.0,0.7869]
[1739993457211,3.6815,2716.3,2715.7,4.5008]
[1739993457412,3.6815,2716.3,2715.7,0.8186]
[1739993458002,3.68161,2716.2,2715.3,0.8186]
[1739993458200,4.36366487,2716.1,2715.4,3.68261]
[1739993458369,3.68199,2716.0,2715.4,3.68261]
[1739993459007,0.68184487,2716.1,2715.4,3.68261]
[1739993459177,4.36360487,2716.1,2715.4,3.68261]
[1739993459374,0.68184487,2716.1,2715.4,3.68261]
[1739993459670,0.4696585,2716.0,2715.4,3.68261]
[1739993460393,4.1515385,2716.0,2715.4,3.68261]
[1739993460585,4.1515385,2716.0,2715.3,4.50141]
[1739993460792,4.1515385,2716.0,2715.4,3.68269]
[1739993460965,0.4696585,2716.0,2715.4,3.68269]
[1739993461370,4.1515985,2716.0,2715.4,3.68269]
[1739993461609,4.53357734,2715.9,2715.3,0.8186]
[1739993461773,4.53357734,2715.9,2715.3,4.50139]
[1739993461972,0.7837,2715.8,2715.3,0.8186]
[1739993462314,3.68251,2715.6,2714.9,4.49504]
[1739993462522,3.68238,2715.7,2715.0,3.68317]
[1739993462698,0.982608,2715.6,2715.0,3.68317]
[1739993463111,0.982608,2715.6,2715.0,7.36633]
[1739993463414,0.982608,2715.6,2715.1,3.68309]
[1739993464183,0.982608,2715.6,2714.9,0.8117]
[1739993464383,3.68257,2715.5,2714.9,0.8117]
[1739993464583,1.1347548,2715.5,2715.0,3.68323]
[1739993465473,4.8173148,2715.5,2715.0,3.68323]
[1739993465804,3.683,2715.2,2714.7,0.9057868]
[1739993466635,3.68314,2715.1,2714.7,0.1483868]
[1739993466812,0.736614,2715.0,2714.7,0.1483868]
[1739993467208,3.68337,2714.9,2714.7,0.1483868]
[1739993467808,0.736614,2715.0,2714.7,0.1483868]
[1739993468023,4.419884,2715.0,2714.7,0.1483868]
[1739993468443,0.736614,2715.0,2714.7,0.1483868]
[1739993468743,3.68338,2714.9,2714.7,0.1483868]
[1739993468942,4.4936924,2714.9,2714.7,0.1483868]
[1739993469145,3.68338,2714.9,2714.7,0.1483868]
[1739993469841,3.68351,2714.8,2714.7,0.1483868]
[1739993470108,7.50771,2714.8,2714.7,0.1483868]
[1739993470854,8.05771,2714.8,2714.7,0.1483868]
[1739993471638,4.3742,2714.8,2714.7,0.1483868]
[1739993471819,5.47964287,2714.8,2714.7,0.1483868]
[1739993472015,4.1002,2714.8,2714.7,0.1483868]
[1739993472215,1.1002,2714.8,2714.7,0.1483868]
[1739993472420,0.276,2714.8,2714.7,0.1483868]
[1739993472661,5.36,2714.9,2714.7,0.1483868]
[1739993473021,5.36,2714.9,2714.8,0.814]
[1739993473477,0.276,2715.1,2714.8,0.814]
[1739993474185,3.68332,2715.0,2714.7,0.1483868]
[1739993474391,6.95911,2715.1,2714.7,0.1483868]
[1739993474549,3.276,2715.1,2714.7,3.8320068]
[1739993474745,6.1133364,2715.3,2714.7,0.1483868]
[1739993474987,5.36,2715.3,2714.9,3.68335]
[1739993475185,5.36,2715.3,2715.0,0.7662]
[1739993475688,3.68332,2715.0,2714.7,0.1483868]
[1739993475874,4.45223,2715.1,2714.7,0.1483868]
[1739993476042,6.11544287,2715.1,2714.7,0.1483868]
[1739993476249,3.68324,2715.0,2714.7,0.1483868]
[1739993476791,6.11542287,2715.1,2714.7,0.1483868]
[1739993477162,6.68299,2715.2,2714.7,0.1483868]
[1739993478453,3.0,2715.1,2714.7,0.1483868]
[1739993478655,3.0,2715.2,2714.8,3.68339]
[1739993479094,3.0,2715.2,2714.7,3.8319368]
[1739993479388,3.68319,2715.1,2714.7,0.1483868]
[1739993479594,5.56948587,2715.1,2714.7,0.1483868]
[1739993479953,6.39598587,2715.1,2714.7,0.1483868]
[1739993480654,3.68351,2714.8,2714.7,0.1483868]
[1739993481268,9.04351,2714.8,2714.7,0.1483868]
[1739993481484,12.86811,2714.8,2714.7,0.1483868]
[1739993481791,13.93475902,2714.8,2714.7,0.1483868]
[1739993482603,14.48475902,2714.8,2714.7,0.1483868]
[1739993483194,13.93475902,2714.8,2714.7,0.1483868]
[1739993483381,17.82761853,2714.8,2714.7,0.1483868]
[1739993484711,18.09789852,2714.8,2714.7,0.1483868]
[1739993485086,18.64789852,2714.8,2714.7,0.1483868]
[1739993485603,18.09789852,2714.8,2714.7,0.1483868]
[1739993485788,14.96105985,2714.8,2714.7,0.1483868]
[1739993485988,14.14217986,2714.8,2714.7,0.1483868]
[1739993486208,10.45866986,2714.8,2714.7,0.1483868]
[1739993486378,14.14217986,2714.8,2714.7,0.1483868]
[1739993486577,10.18266986,2714.8,2714.7,0.1483868]
[1739993486807,13.86617986,2714.8,2714.7,0.1483868]
[1739993487375,10.45866986,2714.8,2714.7,0.1483868]
[1739993487578,14.14217986,2714.8,2714.7,0.1483868]
[1739993488119,18.03251853,2714.8,2714.7,0.1483868]
[1739993490496,18.58251853,2714.8,2714.7,0.1483868]
[1739993494520,3.7573,2714.4,2713.7,0.8047]
[1739993494832,3.68457,2714.1,2713.7,0.8047]
[1739993495421,3.0,2714.2,2713.7,0.8047]
[1739993495627,3.68447,2714.1,2713.7,0.8047]
[1739993496127,3.68466,2714.0,2713.7,0.8047]
[1739993497322,3.68478,2713.9,2713.7,0.8047]
[1739993497509,3.68461,2714.0,2713.7,0.8047]
[1739993497714,0.75638629,2714.1,2713.7,0.8047]
[1739993497910,3.68443,2714.2,2713.7,4.48967]
[1739993498124,3.0,2714.3,2713.8,0.7579]
[1739993498444,3.0,2714.3,2714.0,3.68455]
[1739993499330,3.0,2714.3,2713.9,3.68463]
[1739993499534,3.0,2714.3,2714.0,3.68459]
[1739993499837,3.0,2714.3,2714.2,4.51372]
[1739993500182,0.276,2714.6,2714.3,3.68419]
[1739993500442,0.276,2714.6,2714.4,3.68405]
[1739993500942,3.0,2714.7,2714.3,3.68419]
[1739993501441,0.73910506,2715.1,2714.9,0.8294]
[1739993501600,5.36,2715.4,2714.9,0.8294]
[1739993501799,3.0,2715.1,2714.9,0.8294]
[1739993502001,3.68333,2715.0,2714.5,0.8294]
[1739993502202,3.0,2715.1,2714.5,0.8294]
[1739993502438,3.0,2715.1,2714.7,3.68361]
[1739993502642,3.0,2715.1,2714.7,4.51301]
[1739993502803,3.0,2715.1,2714.8,3.68349]
[1739993502998,5.36,2715.3,2714.9,3.68326]
[1739993503201,3.0,2715.2,2715.0,0.8294]
[1739993505326,4.204271,2715.2,2714.7,4.51291]
[1739993505555,3.0,2715.2,2714.7,0.8294]
[1739993505743,6.68303,2715.2,2714.7,0.8294]
[1739993505958,3.68313,2715.1,2714.7,0.8294]
[1739993506145,3.68324,2715.0,2714.7,0.8294]
[1739993506348,4.51163,2715.1,2714.4,4.46504]
[1739993506546,3.68313,2715.1,2714.5,3.68383]
[1739993506781,5.255733,2715.1,2714.5,3.68383]
[1739993507741,1.572603,2715.1,2714.6,3.6837]
[1739993508267,5.255723,2715.1,2714.5,3.68391]
[1739993509275,3.68325,2715.0,2714.4,4.46498]
[1739993509481,1.572603,2715.1,2714.5,3.68391]
[1739993509651,0.1496,2714.8,2714.7,3.68364]
[1739993510249,0.1496,2714.8,2714.5,3.68391]
[1739993510576,0.1496,2714.8,2714.6,3.68365]
[1739993510781,0.1496,2714.8,2714.7,4.46274]
[1739993515548,0.1496,2714.8,2714.7,0.7791]
[1739993517389,0.1496,2714.8,2714.7,4.46274]
[1739993519103,0.1496,2714.8,2714.7,0.7791]
[1739993519409,0.1496,2714.8,2714.4,3.68395]
[1739993519697,0.1496,2714.8,2714.6,3.68366]
[1739993520103,0.1496,2714.8,2714.7,3.68364]
[1739993521868,0.1496,2714.8,2714.7,4.909124]
[1739993526965,0.1496,2714.8,2714.7,13.279124]
[1739993527378,0.999,2715.0,2714.9,4.46977]
[1739993527705,0.999,2715.0,2714.9,11.15660867]
[1739993528069,0.999,2715.0,2714.9,8.15660867]
[1739993528274,0.784,2716.3,2715.8,3.68208]
[1739993528881,0.74907085,2716.2,2715.6,3.68242]
[1739993529095,3.68176,2716.1,2715.5,3.68253]
[1739993529315,0.44308309,2716.0,2715.5,7.36501]
[1739993529612,4.43069085,2716.2,2715.5,3.68248]
[1739993529917,3.68183,2716.1,2715.5,3.68248]
[1739993530105,4.43069085,2716.2,2715.5,3.68246]
[1739993530307,4.43075085,2716.2,2715.5,3.68253]
[1739993530622,3.68181,2716.1,2715.4,3.68263]
[1739993530920,3.68181,2716.1,2715.5,3.68255]
[1739993531590,0.74907085,2716.2,2715.6,3.68242]
[1739993531786,0.74907085,2716.2,2715.5,3.68251]
[1739993531991,4.43069085,2716.2,2715.5,3.68249]
[1739993532381,4.43069085,2716.2,2715.5,4.127929]
[1739993533119,3.68205,2715.9,2715.3,4.45466]
[1739993533313,0.7618,2716.1,2715.3,0.7719]
[1739993533724,3.68203,2715.9,2715.3,0.7719]
[1739993533879,3.68227,2715.8,2715.1,4.45201]
[1739993534084,3.6823,2715.7,2715.1,4.45201]
[1739993534322,3.68202,2715.9,2715.1,4.45201]
[1739993534619,0.447902,2715.8,2715.1,4.45201]
[1739993534818,4.130082,2715.8,2715.1,4.45201]
[1739993535116,0.447902,2715.8,2715.1,4.45201]
[1739993535419,3.68262,2715.5,2714.9,4.48964]
[1739993535580,4.49483,2715.5,2714.9,4.48964]
[1739993535778,7.36549,2715.4,2714.7,9.05363]
[1739993536013,0.7571,2715.3,2714.7,9.05354]
[1739993536384,0.7571,2715.3,2714.7,12.73711]
[1739993536678,4.4396,2715.6,2714.7,5.37]
[1739993536883,5.03093932,2715.6,2714.8,3.68337]
[1739993537425,1.205002,2715.8,2715.2,3.68283]
[1739993537584,1.205002,2715.8,2715.3,3.68276]
[1739993537783,5.36,2716.1,2715.6,3.68233]
[1739993537981,5.36,2716.1,2715.7,3.68222]
[1739993538206,0.7571,2716.2,2715.7,3.68222]
[1739993538409,0.72583144,2716.3,2715.4,3.94323867]
[1739993538614,0.72583144,2716.3,2715.9,3.68191]
[1739993539127,0.72583144,2716.3,2715.9,3.68202]
[1739993539421,0.72583144,2716.3,2715.9,7.36395]
[1739993539626,0.72583144,2716.3,2715.9,3.68193]
[1739993540425,3.68169,2716.2,2715.8,0.7719]
[1739993540737,0.7669,2715.7,2715.1,3.68303]
[1739993540917,0.7669,2715.7,2715.1,7.36606]
[1739993541226,0.7669,2715.7,2715.1,3.68303]
[1739993541748,1.211808,2715.7,2715.0,4.46534]
[1739993541937,0.7669,2715.7,2715.0,4.46534]
[1739993542109,4.44929,2715.7,2715.1,3.6831]
[1739993542742,4.44929,2715.7,2715.1,3.68303]
[1739993542934,0.7669,2715.7,2715.2,3.68285]
[1739993543248,0.7669,2715.7,2715.0,4.46525]
[1739993543456,3.68253,2715.6,2714.9,5.37]
[1739993543654,3.68303,2715.2,2714.6,0.7821]
[1739993543827,0.7669,2715.1,2714.6,3.68372]
[1739993544026,0.7669,2715.1,2714.4,0.7821]
[1739993544229,3.68354,2714.8,2714.2,0.7821]
[1739993544539,0.368354,2714.8,2714.3,3.68417]
[1739993544736,3.68332,2715.0,2714.3,7.3682]
[1739993545308,3.7669,2715.1,2714.4,3.68397]
[1739993545513,7.45008,2715.1,2714.4,3.68397]
[1739993546014,0.7669,2715.1,2714.4,3.68397]
[1739993546235,3.68329,2715.0,2714.4,7.36794]
[1739993546437,3.68329,2715.0,2714.4,3.68397]
[1739993546655,4.664309,2715.0,2714.4,3.68397]
[1739993547152,4.664309,2715.0,2714.2,4.46629]
[1739993547362,7.36689,2714.9,2714.2,4.46629]
[1739993547655,3.68338,2714.9,2714.2,4.46629]
[1739993548229,3.68338,2714.9,2714.3,3.68411]
[1739993548759,3.68351,2714.8,2714.2,4.46629]
[1739993548923,4.44526,2714.7,2714.0,4.45247]
[1739993549428,4.44526,2714.7,2714.1,3.68445]
[1739993549751,0.7616,2714.7,2714.2,3.6843]
[1739993551658,4.44525,2714.7,2714.2,3.6843]
[1739993552022,4.44525,2714.7,2714.0,4.45251]
[1739993552222,3.68381,2714.6,2714.0,4.45251]
[1739993552852,3.68398,2714.5,2713.8,4.49326]
[1739993553057,3.68434,2714.2,2713.6,4.49355]
[1739993553362,3.68454,2714.1,2713.5,3.68525]
[1739993553534,4.421186,2714.2,2713.5,3.68525]
[1739993553731,4.421186,2714.2,2713.6,3.68509]
[1739993553955,4.2085286,2714.1,2713.4,0.8085]
[1739993554161,0.5240286,2714.1,2713.4,0.8085]
[1739993554380,3.68441,2714.2,2713.6,3.68506]
[1739993555123,3.68446,2714.1,2713.5,3.68527]
[1739993555528,3.68446,2714.1,2713.5,3.68518]
[1739993555839,3.68465,2714.0,2713.5,3.68518]
[1739993556363,6.68439,2714.2,2713.7,3.68497]
[1739993556567,7.803168,2714.2,2713.7,3.68497]
[1739993557068,4.118778,2714.2,2713.6,3.68504]
[1739993557383,3.68398,2714.5,2713.9,3.68466]
[1739993557673,7.51363,2714.4,2713.8,3.68486]
[1739993558756,7.51363,2714.4,2713.9,3.68464]
[1739993559161,0.8295,2714.4,2713.9,3.68464]
[1739993560047,0.8295,2714.4,2713.9,7.3693]
[1739993560247,0.8295,2714.4,2713.9,3.68464]
[1739993561054,0.8295,2714.4,2714.0,3.68453]
[1739993561254,5.36,2714.6,2713.7,3.68492]
[1739993561475,0.7518,2715.0,2714.7,3.68363]
[1739993561676,0.7518,2715.0,2714.5,3.68379]
[1739993561882,0.7518,2715.4,2714.8,3.68343]
[1739993562051,0.7518,2715.4,2714.9,3.68336]
[1739993562377,3.7518,2715.4,2714.8,4.47813]
[1739993562585,5.36,2715.5,2715.0,3.68311]
[1739993562784,5.36,2715.5,2715.2,3.68296]
[1739993562953,0.7518,2715.6,2715.3,3.68276]
[1739993563158,0.7518,2715.8,2715.3,3.68276]
[1739993563455,0.7518,2715.8,2715.3,3.68281]
[1739993563782,0.7518,2715.8,2715.0,3.95663867]
[1739993563951,0.7977,2716.1,2715.1,3.6831]
[1739993564156,0.7977,2716.4,2715.4,0.8198]
[1739993564352,0.7977,2716.8,2716.1,3.68166]
[1739993564774,4.47858,2716.8,2716.1,3.68166]
[1739993564988,3.68094,2716.7,2716.1,3.68166]
[1739993565144,0.447864,2716.6,2716.1,3.68166]
[1739993565345,3.447864,2716.6,2716.1,3.68166]
[1739993565746,3.447864,2716.6,2716.0,0.811]
[1739993566141,0.447864,2716.6,2716.0,0.811]
[1739993566458,0.447864,2716.6,2716.1,3.68166]
[1739993566776,0.72624068,2716.7,2716.3,3.68145]
[1739993567686,0.72624068,2716.7,2716.1,3.68162]
[1739993568191,3.0,2716.6,2716.1,3.68162]
[1739993568700,4.47851,2716.8,2716.1,3.68162]
[1739993568898,4.47851,2716.8,2716.2,0.368162]
[1739993569063,4.47851,2716.8,2716.2,4.049702]
[1739993569064,3.0,2716.7,2716.2,4.049702]
[1739993569274,1.5161776,2717.0,2716.3,0.764]
[1739993569473,1.5161776,2717.0,2716.7,3.68082]
[1739993569766,1.5161776,2717.0,2716.5,3.6811]
[1739993569958,1.5161776,2717.0,2716.5,4.493753]
[1739993570384,1.5161776,2717.0,2716.5,0.812653]
[1739993570558,1.5161776,2717.0,2716.6,3.68105]
[1739993570759,1.5161776,2717.0,2716.5,3.68108]
[1739993570999,1.5161776,2717.0,2716.5,7.36221]
[1739993571166,1.5161776,2717.0,2716.6,3.68106]
[1739993571380,0.7565776,2717.0,2716.8,3.68069]
[1739993571695,3.0,2717.1,2716.8,3.68069]
[1739993572085,3.0,2717.1,2716.6,7.36199]
[1739993572287,3.0,2717.1,2716.7,4.417129]
[1739993572853,3.0,2717.1,2716.7,0.736199]
[1739993573098,3.0,2717.1,2716.6,3.68096]
[1739993573263,3.0,2717.1,2716.6,7.36195]
[1739993573674,3.0,2717.1,2716.6,3.68096]
[1739993573995,6.68043,2717.1,2716.6,3.68096]
[1739993574395,7.36126,2717.0,2716.4,3.68125]
[1739993574605,3.68063,2717.0,2716.4,8.712177]
[1739993574802,3.68063,2717.0,2716.5,3.68119]
[1739993575263,6.68041,2717.1,2716.6,3.68095]
[1739993575471,3.0,2717.1,2716.6,3.68095]
[1739993576592,3.0,2717.1,2716.6,0.1504]
[1739993576997,3.0,2717.1,2716.7,3.68086]
[1739993577372,3.0,2717.1,2716.7,0.383126]
[1739993577608,3.0,2717.1,2716.8,3.6807]
[1739993578392,0.8224,2717.2,2716.8,0.8004]
[1739993578794,0.8224,2717.2,2716.8,4.48113]
[1739993579406,0.8224,2717.2,2716.8,0.8004]
[1739993579613,0.8224,2717.2,2716.6,7.51252]
[1739993579614,4.50277,2717.2,2716.6,4.63186]
[1739993579784,3.68041,2717.1,2716.7,0.463186]
[1739993580109,0.8224,2717.2,2716.7,0.463186]
[1739993580693,0.8224,2717.2,2716.7,4.144116]
[1739993580694,4.50275,2717.2,2716.7,4.144116]
[1739993581004,3.68039,2717.1,2716.7,0.463186]
[1739993581170,3.68039,2717.1,2716.6,0.1504]
[1739993581374,3.68039,2717.1,2716.6,3.83143]
[1739993581577,4.50267,2717.2,2716.6,3.83143]
[1739993582022,4.50266,2717.2,2716.6,3.83143]
[1739993582317,4.50266,2717.2,2716.7,4.432117]
[1739993582717,4.50266,2717.2,2716.7,0.751257]
[1739993582918,3.68042,2717.1,2716.7,0.751257]
[1739993583224,0.8224,2717.2,2716.6,0.1504]
[1739993583425,3.68061,2717.0,2716.6,0.1504]
[1739993584721,3.68039,2717.1,2716.6,0.1504]
[1739993584893,3.68093,2716.7,2716.6,0.1504]
[1739993585236,7.43203,2716.7,2716.6,0.1504]
[1739993585592,3.7511,2716.7,2716.6,0.1504]
[1739993586204,3.13683867,2717.1,2716.6,0.1504]
[1739993586205,0.7537,2716.9,2716.6,0.1504]
[1739993586427,0.7537,2717.1,2716.6,0.1504]
[1739993586645,0.7537,2717.4,2716.9,3.68058]
[1739993586789,0.7537,2717.4,2716.9,0.368058]
[1739993586790,4.43376,2717.4,2716.9,0.368058]
[1739993586991,3.0,2717.3,2716.9,0.368058]
[1739993587228,4.4337,2717.4,2716.9,0.368058]
[1739993587542,0.7537,2717.4,2716.8,0.8081]
[1739993587845,3.6806,2717.0,2716.6,0.1504]
[1739993588191,3.0,2717.1,2716.6,0.1504]
[1739993588394,3.68065,2717.0,2716.6,0.1504]
[1739993588628,3.6805,2717.1,2716.6,0.1504]
[1739993588805,3.68059,2717.0,2716.6,0.1504]
[1739993589130,0.8198,2717.0,2716.6,0.1504]
[1739993589336,3.68071,2716.9,2716.6,0.1504]
[1739993589628,0.8198,2717.0,2716.6,0.1504]
[1739993589829,3.68079,2716.9,2716.6,0.1504]
[1739993590031,3.68093,2716.8,2716.6,0.1504]
[1739993591436,3.68093,2716.7,2716.6,0.1504]
[1739993592397,3.0,2716.9,2716.6,0.1504]
[1739993592694,5.36,2717.0,2716.6,0.9575]
[1739993592995,0.7972,2717.3,2716.7,3.68085]
[1739993593394,3.68028,2717.2,2716.7,3.68085]
[1739993593596,3.68028,2717.2,2716.6,4.63856]
[1739993593759,3.7972,2717.3,2716.7,0.463856]
[1739993593964,0.7972,2717.3,2716.7,0.463856]
[1739993594199,3.68025,2717.2,2716.7,0.463856]
[1739993595112,3.68025,2717.2,2716.6,0.9575]
[1739993595313,4.47813,2716.7,2716.6,0.1504]
[1739993595461,7.47813,2716.7,2716.6,0.1504]
[1739993596504,3.0,2716.7,2716.6,0.1504]
[1739993597467,3.68039,2717.1,2716.6,3.83136]
[1739993597665,3.0,2717.0,2716.6,3.83136]
[1739993597950,6.68054,2717.0,2716.6,0.1504]
[1739993598203,6.68053,2717.0,2716.6,0.1504]
[1739993599760,3.0,2717.0,2716.6,0.1504]
[1739993600421,3.0,2717.0,2716.6,3.83146]
[1739993600603,3.0,2717.0,2716.7,0.7647]
[1739993601111,0.7606,2717.2,2716.7,5.273246]
[1739993601264,5.36,2717.3,2716.7,1.592436]
[1739993601463,5.36,2717.3,2717.2,4.48305]
[1739993601919,5.36,2717.3,2717.2,0.8028]
[1739993602422,0.74670246,2717.5,2717.2,4.48299]
[1739993602622,0.74670246,2717.5,2717.2,4.48302]
[1739993602999,0.74670246,2717.5,2717.3,3.68011]
[1739993603338,0.7569,2717.8,2717.3,0.816321]
[1739993603339,3.0,2717.6,2717.3,0.816321]
[1739993603630,3.68019,2717.3,2716.8,0.8122]
[1739993604282,3.68034,2717.2,2716.8,0.8122]
[1739993605390,6.68009,2717.4,2716.9,3.68066]
[1739993605617,6.68009,2717.4,2716.8,1.813556]
[1739993605618,6.68009,2717.4,2716.8,5.494256]
[1739993606090,3.0,2717.6,2717.1,3.68029]
[1739993606398,3.0,2717.6,2717.2,4.46667]
[1739993606595,3.0,2717.8,2717.3,8.174776]
[1739993606829,0.74146477,2717.9,2717.3,4.494736]
[1739993607127,3.67952,2717.8,2717.3,4.494806]
[1739993607311,4.42077477,2717.9,2717.3,4.494806]
[1739993607486,3.67931,2717.9,2717.4,0.5281306]
[1739993607826,4.43919913,2718.1,2717.5,4.49047]
[1739993608120,3.0,2718.0,2717.5,4.49047]
[1739993608486,3.0,2718.0,2717.6,3.67964]
[1739993608695,3.0,2718.0,2717.7,0.817011]
[1739993608892,3.0,2718.0,2717.5,4.49047]
[1739993610286,6.67921,2718.0,2717.5,4.49047]
[1739993611232,3.67906,2718.1,2717.5,0.8107]
[1739993611430,3.6789,2718.3,2717.6,3.67965]
[1739993611589,6.67896,2718.2,2717.7,0.449035]
[1739993612127,3.0,2718.2,2717.7,4.128505]
[1739993613003,0.8042,2718.8,2717.8,0.7709]
[1739993613326,3.0,2718.5,2717.8,4.45033]
[1739993613527,3.67878,2718.3,2717.8,2.1657915]
[1739993613688,4.46528,2718.3,2717.8,0.7709]
[1739993614133,3.67892,2718.2,2717.8,0.7709]
[1739993614631,4.46528,2718.3,2717.8,0.7709]
[1739993614934,3.67897,2718.2,2717.8,0.7709]
[1739993615402,4.45436,2718.5,2717.8,0.7709]
[1739993615591,7.72911,2718.7,2717.9,0.445045]
[1739993615928,3.67866,2718.4,2717.9,0.445045]
[1739993616131,3.67886,2718.3,2717.9,0.445045]
[1739993616296,3.67876,2718.3,2717.8,0.7709]
[1739993616496,3.67866,2718.4,2717.8,0.7709]
[1739993616736,3.67891,2718.2,2717.8,0.7709]
[1739993617122,0.74886537,2718.6,2717.8,0.7709]
[1739993617327,0.74886537,2718.6,2717.5,0.8274]
[1739993617328,0.8204,2718.2,2717.5,0.8274]
[1739993617656,3.0,2718.1,2717.5,4.50723]
[1739993618058,0.8204,2718.2,2717.5,4.50723]
[1739993618242,3.0,2718.2,2717.6,3.67969]
[1739993618425,6.67893,2718.2,2717.6,3.67969]
[1739993618626,6.67899,2718.2,2717.5,0.8274]
[1739993618931,6.67899,2718.2,2717.5,4.957962]
[1739993619134,10.358,2718.2,2717.5,4.957962]
[1739993619456,6.67899,2718.2,2717.5,4.957962]
[1739993619862,10.35801,2718.2,2717.5,4.957962]
[1739993620055,6.67899,2718.2,2717.5,4.957962]
[1739993620261,6.67899,2718.2,2717.6,1.0327962]
[1739993620555,10.35799,2718.2,2717.6,1.0327962]
[1739993621009,6.67899,2718.2,2717.6,1.0327962]
[1739993621211,3.67904,2718.1,2717.6,1.0327962]
[1739993621915,3.67927,2718.0,2717.5,0.8274]
[1739993624061,3.67939,2717.9,2717.5,0.8274]
[1739993624420,3.67927,2718.0,2717.5,0.8274]
[1739993624928,3.67953,2717.8,2717.5,0.8274]
[1739993625127,3.67938,2717.9,2717.5,0.8274]
[1739993625646,3.67951,2717.8,2717.5,0.8274]
[1739993626050,0.72225007,2718.1,2717.5,0.8274]
[1739993626248,3.67992,2717.5,2717.1,0.7563]
[1739993626447,3.68004,2717.4,2717.1,0.7563]
[1739993626652,3.68047,2717.1,2716.9,0.8332]
[1739993626859,3.6802,2717.3,2716.7,6.2032]
[1739993627169,7.36042,2717.3,2716.7,6.83856]
[1739993627315,3.6802,2717.3,2716.7,6.83856]
[1739993627521,3.68033,2717.2,2716.7,6.83856]
[1739993627862,3.68056,2717.0,2716.7,6.2032]
[1739993628159,3.68042,2717.1,2716.7,6.2032]
[1739993629757,3.68042,2717.1,2716.7,6.1532]
[1739993629961,3.68064,2717.0,2716.7,6.1532]
[1739993630166,3.68071,2716.9,2716.7,6.1532]
[1739993630340,3.68071,2716.9,2716.7,0.8332]
[1739993631225,3.68044,2717.1,2716.7,0.8332]
[1739993631226,7.36093,2717.1,2716.7,0.8332]
[1739993631460,3.68044,2717.1,2716.7,0.8332]
[1739993632326,7.36092,2717.1,2716.7,0.8332]
[1739993633175,7.36094,2717.1,2716.7,0.8332]
[1739993633581,3.68044,2717.1,2716.7,0.8332]
[1739993633741,3.68086,2716.8,2716.6,0.1504]
[1739993633948,3.68093,2716.7,2716.6,0.1504]
[1739993634540,3.68086,2716.8,2716.6,0.1504]
[1739993635928,3.68093,2716.7,2716.6,0.1504]
[1739993636325,6.68093,2716.7,2716.6,0.1504]
[1739993636531,7.798259,2716.7,2716.6,0.1504]
[1739993639078,8.53618825,2716.7,2716.6,0.1504]
[1739993639878,0.275,2717.0,2716.6,0.1504]
[1739993640228,3.0,2716.9,2716.6,0.1504]
[1739993640429,0.775,2717.1,2716.6,0.1504]
[1739993640629,5.36,2717.2,2716.7,0.7526]
[1739993641040,3.6808,2716.8,2716.6,0.1504]
[1739993641242,3.68093,2716.7,2716.6,0.1504]
[1739993641627,3.6808,2716.8,2716.6,0.1504]
[1739993641826,7.47763,2716.7,2716.6,0.1504]
[1739993642473,6.68093,2716.7,2716.6,0.1504]
[1739993642640,3.0,2716.7,2716.6,0.1504]
[1739993642844,3.68086,2716.8,2716.6,0.1504]
[1739993643376,3.68093,2716.7,2716.6,0.1504]
[1739993643557,0.275,2717.0,2716.6,0.1504]
[1739993643757,3.0,2717.1,2716.7,4.45013]
[1739993643944,3.68053,2717.0,2716.7,0.7693]
[1739993644335,9.04034,2717.2,2716.7,1.229388]
[1739993644843,9.04026,2717.2,2716.7,1.229388]
[1739993645176,5.36,2717.2,2716.7,4.910308]
[1739993645360,5.36,2717.2,2717.0,0.7847]
[1739993645559,6.67988,2717.5,2717.0,0.7847]
[1739993645760,3.0,2717.6,2717.0,4.46522]
[1739993645963,4.42944616,2717.8,2717.0,4.911742]
[1739993646258,3.67968,2717.7,2717.1,3.68038]
[1739993646578,5.36,2717.9,2717.3,0.7956]
[1739993646776,3.13683867,2718.3,2717.5,0.7956]
[1739993646777,0.7752,2718.3,2717.5,0.7956]
[1739993646980,3.86011934,2718.4,2717.6,3.67967]
[1739993647135,3.0,2718.2,2717.6,7.35928]
[1739993647480,3.0,2718.2,2717.6,3.67961]
[1739993647783,3.67867,2718.4,2717.7,3.6795]
[1739993647940,3.67867,2718.4,2717.8,0.7956]
[1739993648141,3.0,2718.3,2717.8,0.7956]
[1739993648782,3.67898,2718.2,2717.8,0.7956]
[1739993648992,3.6789,2718.2,2717.4,0.8126]